fUSD/lending_fUSD_20251231
["ID","MTS","AMOUNT","RATE_DAILY","PERIOD"]
[400181328,1767172421271,-500.0,0.00012684,2]
[400181329,1767172421305,-500.0,0.00012684,2]
[400181330,1767172421338,-500.0,0.00012684,2]
[400181331,1767172421370,-500.0,0.00012684,2]
[400181332,1767172421403,-500.0,0.00012684,2]
[400181333,1767172421436,-500.0,0.00012684,2]
[400181334,1767172421468,-500.0,0.00012684,2]
[400181335,1767172421501,-500.0,0.00012684,2]
[400181336,1767172421537,-500.0,0.00012684,2]
[400181337,1767172421572,-500.0,0.00012684,2]
[400181338,1767172421688,-500.0,0.00012684,2]
[400181339,1767172421720,-500.0,0.00012684,2]
[400181340,1767172421751,-500.0,0.00012684,2]
[400181341,1767172421783,-500.0,0.00012684,2]
[400181342,1767172421815,-500.0,0.00012684,2]
[400181343,1767172421845,-500.0,0.00012684,2]
[400181344,1767172421875,-500.0,0.00012684,2]
[400181345,1767172421911,-500.0,0.00012684,2]
[400181346,1767172421942,-500.0,0.00012684,2]
[400181347,1767172421972,-500.0,0.00012684,2]
[400181348,1767172422139,-500.0,0.00012684,2]
[400181349,1767172422171,-500.0,0.00012684,2]
[400181350,1767172422203,-500.0,0.00012684,2]
[400181351,1767172422235,-500.0,0.00012684,2]
[400181352,1767172422268,-500.0,0.00012684,2]
[400181353,1767172422300,-500.0,0.00012684,2]
[400181354,1767172422331,-500.0,0.00012684,2]
[400181355,1767172422363,-500.0,0.00012684,2]
[400181356,1767172422394,-500.0,0.00012684,2]
[400181357,1767172422426,-172.47716292,0.00012684,2]
[400181358,1767172422458,-155.05567416,0.00012684,2]
[400181359,1767172422556,-344.94432584,0.00012684,2]
[400181360,1767172422588,-500.0,0.00012684,2]
[400181361,1767172422619,-500.0,0.00012684,2]
[400181362,1767172422651,-452.92268484,0.00012684,2]
[400181363,1767172422686,-500.0,0.00012684,2]
[400181364,1767172422718,-500.0,0.00012684,2]
[400181365,1767172428911,-5193.4092699,0.00012684,2]
[400181366,1767172429022,-2219.09782338,0.00012684,2]
[400181367,1767172429045,-5561.81435324,0.00012684,2]
[400181368,1767172429135,-150.0,0.00012684,2]
[400181369,1767172438530,500.0,0.00012684,2]
[400181370,1767172438576,500.0,0.00012684,2]
[400181371,1767172438634,500.0,0.00012684,2]
[400181373,1767172447609,672.910108,7.945e-05,2]
[400181374,1767172465319,151.0,0.00043242,50]
[400181375,1767172479782,-152.41563139,0.00012685,2]
[400181376,1767172481718,-216.07731261,0.00012685,2]
[400181377,1767172500395,282.68440222,0.00012585,2]
[400181378,1767172501399,300.0,0.00012684,2]
[400181379,1767172501448,1200.0,0.00012684,2]
[400181380,1767172501624,300.0,0.00012684,2]
[400181381,1767172502575,150.0,0.00012684,2]
[400181382,1767172509170,500.00000001,0.00012684,2]
[400181383,1767172511142,158.101085,0.00043242,50]
[400181384,1767172538002,500.0,0.00012684,2]
[400181385,1767172545631,520.31157706,0.00012585,2]
[400181389,1767172565041,500.0,0.00043242,120]
[400181390,1767172571617,500.0,0.00012684,2]
[400181391,1767172582991,50000.0,0.00043242,30]
[400181392,1767172590224,50000.0,0.00043242,31]
[400181393,1767172595023,50000.0,0.00043242,32]
[400181394,1767172600471,394.4939291,0.00012684,2]
[400181395,1767172600664,50000.0,0.00043242,33]
[400181397,1767172621209,300.0,0.00012684,2]
[400181399,1767172626097,1769.4014046,0.00012684,2]
[400181400,1767172627288,151.0,0.00012685,2]
[400181401,1767172628133,151.0,0.00012685,2]
[400181402,1767172628731,151.0,0.00012685,2]
[400181403,1767172629333,151.0,0.00012685,2]
[400181404,1767172629926,153.70166196,0.00012685,2]
[400181405,1767172631808,52.50691705,0.00012684,2]
[400181406,1767172631835,447.49308295,0.00012684,2]
[400181407,1767172635744,-9852.51691705,0.00012685,2]
[400181408,1767172635760,-10000.01,0.00012685,2]
[400181409,1767172635780,-10000.01,0.00012685,2]
[400181410,1767172635807,-10000.01,0.00012685,2]
[400181411,1767172635920,-10000.01,0.00012685,2]
[400181412,1767172636026,-10000.01,0.00012685,2]
[400181413,1767172636212,-10000.01,0.00012685,2]
[400181414,1767172636336,-10000.01,0.00012685,2]
[400181415,1767172636471,-10000.01,0.00012685,2]
[400181416,1767172637963,-10000.01,0.00012685,2]
[400181417,1767172638208,151.0,0.00043242,120]
[400181418,1767172640997,-10000.01,0.00012685,2]
[400181419,1767172641101,-10000.01,0.00012685,2]
[400181420,1767172641205,-10000.01,0.00012685,2]
[400181421,1767172641295,-10000.01,0.00012685,2]
[400181422,1767172641558,-10000.01,0.00012685,2]
[400181423,1767172641717,-10000.01,0.00012685,2]
[400181424,1767172642049,-10000.01,0.00012685,2]
[400181425,1767172642191,-10000.01,0.00012685,2]
[400181426,1767172642303,-10000.01,0.00012685,2]
[400181427,1767172659783,-255.69036111,0.00012685,2]
[400181428,1767172662330,-238.49100905,0.00012685,2]
[400181429,1767172664354,-246.62586425,0.00012685,2]
[400181430,1767172666845,-330.75854892,0.00012685,2]
[400181432,1767172685726,578.20924308,0.00043242,120]
[400181433,1767172687532,4369.98021964,7.945e-05,2]
[400181434,1767172687555,3122.99055436,7.945e-05,2]
[400181437,1767172726503,50000.0,0.00043242,34]
[400181438,1767172731117,50000.0,0.00043242,35]
[400181439,1767172735386,50000.0,0.00043242,36]
[400181440,1767172741067,50000.0,0.00043242,37]
[400181442,1767172750443,322.6107,0.00043217,120]
[400181443,1767172751140,250.0,0.00043217,120]
[400181444,1767172751807,250.0,0.00043217,120]
[400181445,1767172752416,250.0,0.00043217,120]
[400181446,1767172753077,250.0,0.00043217,120]
[400181447,1767172755141,500.0,0.00043217,120]
[400181448,1767172755737,500.0,0.00043217,120]
[400181449,1767172756409,500.0,0.00043217,120]
[400181450,1767172757034,500.0,0.00043217,120]
[400181451,1767172757910,500.0,0.00043217,120]
[400181452,1767172758510,500.0,0.00043217,120]
[400181453,1767172759088,500.0,0.00043217,120]
[400181454,1767172759747,500.0,0.00043217,120]
[400181455,1767172760399,500.0,0.00043217,120]
[400181456,1767172761006,500.0,0.00043217,120]
[400181457,1767172761640,500.0,0.00043217,120]
[400181458,1767172762255,500.0,0.00043217,120]
[400181459,1767172763599,999.0,0.00012393,3]
[400181460,1767172767433,50000.0,0.00043217,38]
[400181461,1767172783388,50000.0,0.00043217,39]
[400181465,1767172855416,-300.86586413,0.00012584,2]
[400181466,1767172857535,-309.20310846,0.00012584,2]
[400181467,1767172860862,500.0,0.00043217,120]
[400181471,1767172927220,1589.2664001,0.00012263,2]
[400181472,1767172927245,4712.25695446,0.00012263,2]
[400181473,1767172927270,4712.25695446,0.00012263,2]
[400181474,1767172927298,4712.25695446,0.00012263,2]
[400181475,1767172942415,50000.0,0.00043217,35]
[400181476,1767172948282,50000.0,0.00043217,36]
[400181477,1767172953792,50000.0,0.00043217,37]
[400181478,1767172974904,-511.09614521,0.00012201,2]
[400181479,1767172978517,-183.45862217,0.00012201,2]
[400181481,1767172991150,28000.0,0.00043217,38]
[400181483,1767173056795,10000.0,0.00043221,30]
[400181484,1767173088894,712.48,0.00043221,30]
[400181485,1767173095361,-159.41,0.00012057,2]
[400181486,1767173095387,-90.59,0.00012194,2]
[400181487,1767173097527,-232.70570855,0.00012194,2]
[400181488,1767173101230,-311.00168897,0.00012256,2]
[400181490,1767173103274,-120.54823491,0.00012256,2]
[400181491,1767173103299,-72.45007612,0.00012263,2]
[400181492,1767173107254,679.70449888,0.00043221,30]
[400181493,1767173115726,229.80104247,0.00043221,120]
[400181494,1767173121150,-344.995708,0.00012201,2]
[400181495,1767173121179,-2711.4159236,0.00012263,2]
[400181496,1767173121220,-3887.1867368,0.00012263,2]
[400181497,1767173124050,-300.0,0.00012429,2]
[400181498,1767173124084,-300.0,0.00012429,2]
[400181499,1767173124115,-1200.0,0.00012429,2]
[400181500,1767173124145,-1200.0,0.0001243,2]
[400181501,1767173124177,-300.0,0.0001243,2]
[400181502,1767173124208,-1452.396,0.00012431,2]
[400181503,1767173124323,-495.218,0.00012431,2]
[400181504,1767173127271,-158.084,0.00012431,2]
[400181505,1767173127305,-250.0,0.00012508,2]
[400181506,1767173127339,-250.0,0.00012554,2]
[400181507,1767173127380,-500.0,0.00012584,2]
[400181508,1767173127419,-500.0,0.00012584,2]
[400181509,1767173127456,-500.0,0.00012584,2]
[400181510,1767173127494,-302.27412329,0.00012584,2]
[400181511,1767173127536,-500.0,0.00012584,2]
[400181512,1767173127574,-500.0,0.00012584,2]
[400181513,1767173127613,-500.0,0.00012584,2]
[400181514,1767173127652,-500.0,0.00012584,2]
[400181515,1767173127691,-500.0,0.00012584,2]
[400181516,1767173128038,-79.29375342,0.00012584,2]
[400181517,1767173130115,-173.70624658,0.00012584,2]
[400181518,1767173130146,-150.0,0.00012584,2]
[400181519,1767173130176,-150.99,0.00012584,2]
[400181520,1767173130207,-4416.0,0.00012584,2]
[400181521,1767173130239,-67.62750684,0.00012584,2]
[400181522,1767173130535,-83.36249316,0.00012584,2]
[400181525,1767173154810,-158.09533392,0.00012584,2]
[400181527,1767173161585,500.0,0.00043221,120]
[400181529,1767173163832,-141.90466608,0.00012584,2]
[400181530,1767173163870,-9716.20066784,0.00012584,2]
[400181531,1767173164052,-283.78933216,0.00012584,2]
[400181532,1767173164083,-999.99,0.00012584,2]
[400181533,1767173164144,-7432.45133568,0.00012585,2]
[400181535,1767173169911,-10000.01,0.00012585,2]
[400181536,1767173169943,-10000.01,0.00012585,2]
[400181539,1767173231508,-200.0,0.00012497,2]
[400181540,1767173231537,-40.72728583,0.00012541,2]
[400181541,1767173234036,-259.27271417,0.00012541,2]
[400181542,1767173234060,-66.29206282,0.00012584,2]
[400181543,1767173236921,-233.70793718,0.00012584,2]
[400181544,1767173236944,-150.0,0.00012584,2]
[400181545,1767173236966,-26.76898986,0.00012584,2]
[400181546,1767173238889,-192.85106938,0.00012584,2]
[400181547,1767173240472,-80.37994076,0.00012584,2]
[400181548,1767173240498,-97.13135924,0.00012585,2]
[400181549,1767173242742,-490.95730508,0.00012585,2]
[400181550,1767173242766,-35.7433454,0.00012585,2]
[400181552,1767173245448,-244.70273456,0.00012585,2]
[400181553,1767173247950,-256.0,0.00012522,2]
[400181554,1767173252479,-162.74,0.00012522,2]
[400181555,1767173255088,-256.79390013,0.00012522,2]
[400181556,1767173256588,-185.56190518,0.00012522,2]
[400181570,1767173295300,1927.21113283,0.0001,2]
[400181573,1767173297303,390.62639863,7.888e-05,2]
[400181574,1767173305885,-574.09988407,0.00012522,2]
[400181575,1767173306933,2729.30333667,0.0001,2]
[400181576,1767173307655,-94.18408262,0.00012522,2]
[400181577,1767173307934,-86.23026652,0.00012584,2]
[400181578,1767173308293,211.60305166,0.00043221,120]
[400181582,1767173309402,-175.20855862,0.00012584,2]
[400181583,1767173309678,267.6582619,0.000107,2]
[400181585,1767173311496,-216.591633,0.00012584,2]
[400181586,1767173311522,-92.41803924,0.00012584,2]
[400181591,1767173314272,-253.19873588,0.00012584,2]
[400181613,1767173317111,14388.01184909,0.0001,2]
[400181632,1767173321181,428.582908,0.00043221,120]
[400181650,1767173344483,-809.75593,0.00012521,2]
[400181651,1767173344518,-300.0,0.00012574,2]
[400181652,1767173344616,-4783.53654143,0.00012575,2]
[400181653,1767173345861,218.9,9.917e-05,2]
[400181655,1767173347299,-218.9,0.00010909,2]
[400181656,1767173347331,-218.9,0.00011901,2]
[400181657,1767173347379,-9124.41,0.00012575,2]
[400181660,1767173353422,-4289.14955386,0.00012575,2]
[400181661,1767173353446,-1421.71089228,0.00012575,2]
[400181672,1767173371830,-150.0,0.00012446,2]
[400181673,1767173372967,-151.059341,0.00012584,2]
[400181674,1767173374406,-217.94258592,0.00012584,2]
[400181675,1767173377168,-264.72632509,0.00012584,2]
[400181676,1767173382659,-160.34407081,0.00012584,2]
[400181678,1767173384056,-60.31090206,0.00012584,2]
[400181679,1767173384078,-736.81351975,0.00012585,2]
[400181680,1767173386092,-164.23543657,0.00012585,2]
[400181681,1767173388690,-14.30496372,0.00012585,2]
[400181682,1767173388717,-152.08981713,0.00012585,2]
[400181683,1767173390148,-168.15,0.00012585,2]
[400181684,1767173394047,-373.02252176,0.00012585,2]
[400181685,1767173396899,528.196242,0.00012522,2]
[400181686,1767173398792,-189.4833,0.00012585,2]
[400181687,1767173400720,-500.0,0.00012585,2]
[400181688,1767173401253,300.0,0.00012584,2]
[400181689,1767173401292,300.0,0.00012584,2]
[400181690,1767173401350,1200.0,0.00012584,2]
[400181691,1767173402350,-333.82944524,0.00012585,2]
[400181692,1767173402421,300.0,0.00012584,2]
[400181693,1767173402896,150.0,0.00012584,2]
[400181694,1767173405548,-203.84285119,0.00012585,2]
[400181698,1767173407558,-220.1102719,0.00012585,2]
[400181699,1767173409134,-163.77126412,0.00012585,2]
[400181701,1767173414950,-309.42347245,0.00012585,2]
[400181702,1767173416937,-368.94471209,0.00012585,2]
[400181703,1767173420233,-296.66561182,0.00012585,2]
[400181704,1767173422221,-170.90443543,0.00012585,2]
[400181706,1767173423928,-476.43839649,0.00012585,2]
[400181707,1767173426411,-159.42475886,0.00012585,2]
[400181708,1767173427865,-168.97095005,0.00012585,2]
[400181710,1767173430441,-231.43896469,0.00012585,2]
[400181714,1767173431667,-7513.38922678,0.00012585,2]
[400181717,1767173431677,-299.99,0.00012585,2]
[400181718,1767173431687,-6755.58769816,0.00012585,2]
[400181719,1767173431699,-3244.40230184,0.00012585,2]
[400181720,1767173431708,-9999.99,0.00012585,2]
[400181721,1767173431719,-2818.2452,0.00012585,2]
[400181722,1767173431729,-2500.0,0.00012585,2]
[400181723,1767173431739,-1951.81760279,0.00012585,2]
[400181724,1767173431749,-300.0,0.00012585,2]
[400181725,1767173431759,-250.0,0.00012585,2]
[400181726,1767173431769,-11523.80099633,0.00012585,2]
[400181727,1767173431779,-253.0,0.00012585,2]
[400181728,1767173431789,-1224.21,0.00012634,2]
[400181729,1767173431803,-482.9001275,0.00012661,2]
[400181730,1767173431814,-151.0,0.00012677,2]
[400181731,1767173431825,-151.0,0.00012677,2]
[400181732,1767173431835,-151.0,0.00012677,2]
[400181733,1767173431846,-236.7016539,0.00012677,2]
[400181734,1767173431857,-1000.0,0.00012685,2]
[400181735,1767173431867,-2858.6002,0.00012685,2]
[400181736,1767173431879,-478.0768,0.00012685,2]
[400181737,1767173431889,-194.76532127,0.00012685,2]
[400181738,1767173431899,-790.74255944,0.00012685,2]
[400181739,1767173431909,-4239.57537948,0.00012685,2]
[400181740,1767173431919,-796.2658854,0.00012685,2]
[400181741,1767173431929,-218.9,0.00012893,2]
[400181742,1767173431941,-366.84006854,0.0001305,2]
[400181743,1767173431951,-5539.93503246,0.00013064,2]
[400181744,1767173431963,-1091.33504491,0.00013064,2]
[400181745,1767173431976,-4892.53091892,0.00013064,2]
[400181746,1767173431985,-200.0,0.0001308,2]
[400181747,1767173431995,-207.4,0.0001308,2]
[400181748,1767173432005,-215.0738,0.0001308,2]
[400181749,1767173432015,-223.0315306,0.0001308,2]
[400181750,1767173432025,-231.28369723,0.0001308,2]
[400181751,1767173432035,-239.84119403,0.0001308,2]
[400181752,1767173432045,-248.71531821,0.0001308,2]
[400181753,1767173432055,-257.91778498,0.0001308,2]
[400181754,1767173432066,-6.97661615,0.0001308,2]
[400181755,1767173432079,-260.48412688,0.0001308,2]
[400181757,1767173432089,-248.32703793,0.0001308,2]
[400181758,1767173432099,-468.56435851,0.00013095,2]
[400181759,1767173432120,-33064.80504149,0.00013095,2]
[400181760,1767173432130,-500.0,0.00013424,2]
[400181761,1767173432140,-636.0,0.00013424,2]
[400181762,1767173432152,-500.0,0.00013424,2]
[400181763,1767173432162,-150.0,0.00013424,2]
[400181764,1767173432176,-150.0,0.00013424,2]
[400181765,1767173432186,-150.0,0.00013424,2]
[400181766,1767173432197,-500.0,0.00013424,2]
[400181767,1767173432209,-572.0,0.00013424,2]
[400181768,1767173432219,-500.0,0.00013424,2]
[400181769,1767173432229,-150.0,0.00013424,2]
[400181770,1767173432239,-500.0,0.00013424,2]
[400181771,1767173432250,-150.0,0.00013425,2]
[400181772,1767173432260,-167.32949041,0.00013425,2]
[400181773,1767173432270,-150.0,0.00013425,2]
[400181774,1767173432280,-1659.65269646,0.00013443,2]
[400181775,1767173432290,-2145.54414522,0.00013446,2]
[400181776,1767173432299,-309.04,0.00013455,2]
[400181777,1767173432309,-500.0,0.00013479,2]
[400181778,1767173432318,-636.0,0.00013479,2]
[400181779,1767173432329,-500.0,0.00013479,2]
[400181780,1767173432339,-150.0,0.00013479,2]
[400181781,1767173432350,-150.0,0.00013479,2]
[400181782,1767173432360,-500.0,0.00013479,2]
[400181783,1767173432371,-572.0,0.00013479,2]
[400181784,1767173432382,-500.0,0.00013479,2]
[400181785,1767173432392,-150.0,0.0001348,2]
[400181786,1767173432403,-229.92980906,0.0001348,2]
[400181787,1767173432413,-3216.78009113,0.00013533,2]
[400181788,1767173432423,-500.0,0.00013534,2]
[400181789,1767173432433,-636.0,0.00013534,2]
[400181790,1767173432443,-500.0,0.00013534,2]
[400181791,1767173432453,-255.7741324,0.00013534,2]
[400181792,1767173432464,-295.43908746,0.00013534,2]
[400181793,1767173432474,-500.0,0.00013534,2]
[400181794,1767173432484,-572.0,0.00013534,2]
[400181795,1767173432494,-500.0,0.00013534,2]
[400181796,1767173432504,-201.63122868,0.00013535,2]
[400181797,1767173432514,-11523.80099629,0.00013544,2]
[400181798,1767173432524,-500.0,0.00013588,2]
[400181799,1767173432533,-636.0,0.00013588,2]
[400181800,1767173432543,-500.0,0.00013588,2]
[400181801,1767173432557,-500.0,0.00013588,2]
[400181802,1767173432568,-572.0,0.00013588,2]
[400181803,1767173432578,-500.0,0.00013588,2]
[400181804,1767173432588,-421.62181606,0.00013599,2]
[400181805,1767173432597,-500.0,0.00013643,2]
[400181806,1767173432607,-636.0,0.00013643,2]
[400181807,1767173432617,-500.0,0.00013643,2]
[400181808,1767173432627,-500.0,0.00013643,2]
[400181809,1767173432637,-572.0,0.00013643,2]
[400181810,1767173432646,-500.0,0.00013643,2]
[400181811,1767173432656,-268.57186094,0.00013653,2]
[400181812,1767173432666,-255.0,0.00013679,2]
[400181813,1767173432676,-500.0,0.00013697,2]
[400181814,1767173432686,-283.59406819,0.00013697,2]
[400181815,1767173432695,-500.0,0.00013697,2]
[400181817,1767173432705,-522.58940526,0.00013697,2]
[400181818,1767173432714,-242.04642185,0.00013697,2]
[400181819,1767173432724,-500.0,0.00013698,2]
[400181820,1767173432737,-636.0,0.00013698,2]
[400181821,1767173432746,-500.0,0.00013698,2]
[400181822,1767173432756,-500.0,0.00013698,2]
[400181823,1767173432766,-572.0,0.00013698,2]
[400181824,1767173432775,-500.0,0.00013698,2]
[400181825,1767173432785,-500.0,0.00013698,2]
[400181826,1767173432795,-500.0,0.00013698,2]
[400181827,1767173432805,-500.0,0.00013698,2]
[400181828,1767173432814,-500.0,0.00013698,2]
[400181829,1767173432826,-500.0,0.00013698,2]
[400181830,1767173432835,-500.0,0.00013698,2]
[400181831,1767173432845,-500.0,0.00013698,2]
[400181832,1767173432855,-500.0,0.00013698,2]
[400181833,1767173432865,-500.0,0.00013698,2]
[400181834,1767173432875,-500.0,0.00013698,2]
[400181835,1767173432884,-500.0,0.00013698,2]
[400181836,1767173432894,-500.0,0.00013698,2]
[400181837,1767173432904,-500.0,0.00013698,2]
[400181838,1767173432914,-500.0,0.00013698,2]
[400181839,1767173432924,-500.0,0.00013698,2]
[400181840,1767173432934,-500.0,0.00013698,2]
[400181841,1767173432943,-500.0,0.00013698,2]
[400181842,1767173432953,-500.0,0.00013698,2]
[400181843,1767173432963,-500.0,0.00013698,2]
[400181844,1767173432974,-595.20438035,0.00013698,2]
[400181845,1767173432983,-500.0,0.00013698,2]
[400181846,1767173432993,-500.0,0.00013698,2]
[400181847,1767173433003,-500.0,0.00013698,2]
[400181848,1767173433013,-500.0,0.00013698,2]
[400181849,1767173433022,-500.0,0.00013698,2]
[400181850,1767173433032,-500.0,0.00013698,2]
[400181851,1767173433042,-500.0,0.00013698,2]
[400181852,1767173433052,-500.0,0.00013698,2]
[400181853,1767173433062,-500.0,0.00013698,2]
[400181854,1767173433072,-500.0,0.00013698,2]
[400181855,1767173433082,-514.2348058,0.00013698,2]
[400181856,1767173433092,-500.0,0.00013698,2]
[400181857,1767173433102,-500.0,0.00013698,2]
[400181858,1767173433112,-500.0,0.00013698,2]
[400181859,1767173433122,-500.0,0.00013698,2]
[400181860,1767173433132,-500.0,0.00013698,2]
[400181861,1767173433142,-500.0,0.00013698,2]
[400181862,1767173433152,-609.35355247,0.00013698,2]
[400181863,1767173433161,-500.0,0.00013698,2]
[400181864,1767173433171,-500.0,0.00013698,2]
[400181865,1767173433180,-500.0,0.00013698,2]
[400181866,1767173433190,-500.0,0.00013698,2]
[400181867,1767173433199,-1582.13,0.00013698,2]
[400181868,1767173433209,-500.0,0.00013698,2]
[400181869,1767173433218,-500.0,0.00013698,2]
[400181870,1767173433228,-500.0,0.00013698,2]
[400181871,1767173433237,-567.14001468,0.00013698,2]
[400181872,1767173433247,-500.0,0.00013698,2]
[400181873,1767173433256,-500.0,0.00013698,2]
[400181874,1767173433266,-500.0,0.00013698,2]
[400181875,1767173433276,-500.0,0.00013698,2]
[400181876,1767173433285,-500.0,0.00013698,2]
[400181877,1767173433295,-500.0,0.00013698,2]
[400181878,1767173433305,-500.0,0.00013698,2]
[400181879,1767173433315,-500.0,0.00013698,2]
[400181880,1767173433325,-500.0,0.00013698,2]
[400181881,1767173433335,-500.0,0.00013698,2]
[400181883,1767173433345,-500.0,0.00013698,2]
[400181884,1767173433355,-591.08628319,0.00013698,2]
[400181885,1767173433365,-500.0,0.00013698,2]
[400181886,1767173433375,-500.0,0.00013698,2]
[400181887,1767173433384,-500.0,0.00013698,2]
[400181888,1767173433394,-500.0,0.00013698,2]
[400181889,1767173433404,-500.0,0.00013698,2]
[400181890,1767173433415,-500.0,0.00013698,2]
[400181891,1767173433426,-500.0,0.00013698,2]
[400181892,1767173433436,-500.0,0.00013698,2]
[400181893,1767173433447,-500.0,0.00013698,2]
[400181894,1767173433457,-500.0,0.00013698,2]
[400181895,1767173433468,-500.0,0.00013698,2]
[400181896,1767173433478,-500.0,0.00013698,2]
[400181897,1767173433488,-500.0,0.00013698,2]
[400181898,1767173433498,-500.0,0.00013698,2]
[400181899,1767173433508,-500.0,0.00013698,2]
[400181900,1767173433519,-500.0,0.00013698,2]
[400181901,1767173433529,-500.0,0.00013698,2]
[400181902,1767173433539,-503.78331968,0.00013698,2]
[400181903,1767173433549,-500.0,0.00013698,2]
[400181904,1767173433559,-223.38638999,0.00013698,2]
[400181905,1767173433570,-516.69968541,0.00013698,2]
[400181906,1767173433583,-500.0,0.00013698,2]
[400181907,1767173433593,-500.0,0.00013698,2]
[400181908,1767173433603,-500.0,0.00013698,2]
[400181909,1767173433613,-500.0,0.00013698,2]
[400181910,1767173433623,-296.93519622,0.00013698,2]
[400181911,1767173433634,-500.0,0.00013698,2]
[400181912,1767173433646,-500.0,0.00013698,2]
[400181913,1767173433656,-500.0,0.00013698,2]
[400181914,1767173433666,-500.0,0.00013698,2]
[400181915,1767173433676,-500.0,0.00013698,2]
[400181916,1767173433685,-500.0,0.00013698,2]
[400181917,1767173433694,-289.75065005,0.00013698,2]
[400181918,1767173433919,-210.24934995,0.00013698,2]
[400181919,1767173433929,-455.75065005,0.00013698,2]
[400181920,1767173433966,-44.24934995,0.00013698,2]
[400181921,1767173433976,-500.0,0.00013698,2]
[400181922,1767173433986,-500.0,0.00013698,2]
[400181923,1767173433996,-500.0,0.00013698,2]
[400181924,1767173434005,-306.75065005,0.00013698,2]
[400181925,1767173434017,-193.24934995,0.00013698,2]
[400181926,1767173434027,-600.0,0.00013747,2]
[400181927,1767173434037,-8.59501863,0.00013747,2]
[400181928,1767173434049,-584.40792014,0.00013747,2]
[400181929,1767173434058,-250.0,0.00013747,2]
[400181930,1767173434068,-300.0,0.00013747,2]
[400181931,1767173434078,-195.0,0.00013747,2]
[400181932,1767173434087,-2500.0,0.00013747,2]
[400181933,1767173434097,-500.0,0.00013753,2]
[400181934,1767173434107,-232.61142,0.00013753,2]
[400181946,1767173434711,316.04603004,0.00043221,120]
[400181947,1767173436577,328.39570891,0.00012685,2]
[400181950,1767173437676,-392.85782781,0.00013753,2]
[400181951,1767173437728,-10.53075219,0.00013753,2]
[400181952,1767173437739,-500.0,0.00013753,2]
[400181953,1767173437750,-118.20169513,0.00013753,2]
[400181954,1767173437837,-381.79830487,0.00013753,2]
[400181955,1767173437847,-572.0,0.00013753,2]
[400181956,1767173437857,-500.0,0.00013753,2]
[400181957,1767173437867,-300.0,0.00013774,2]
[400181958,1767173437877,-195.0,0.00013774,2]
[400181959,1767173437888,-460.82680112,0.00013806,2]
[400181961,1767173437904,-1219.17319888,0.00013806,2]
[400181962,1767173437914,-420.0,0.00013806,2]
[400181963,1767173437924,-420.0,0.00013806,2]
[400181964,1767173437934,-533.17731287,0.00013808,2]
[400181965,1767173437943,-636.0,0.00013808,2]
[400181966,1767173437953,-500.0,0.00013808,2]
[400181967,1767173437963,-190.32518139,0.00013808,2]
[400181968,1767173437974,-309.67481861,0.00013808,2]
[400181969,1767173437984,-572.0,0.00013808,2]
[400181970,1767173437994,-500.0,0.00013808,2]
[400181972,1767173438004,-195.0,0.00013832,2]
[400181974,1767173438013,-83.64471311,0.00013842,2]
[400182150,1767173439784,-438.65514724,0.00013842,2]
[400182158,1767173439855,-1157.70013965,0.00013842,2]
[400182160,1767173439865,-436.96815083,0.00013843,2]